Cogmind - Beta 14 @@@ ROGUE MODE // 2025.03.22 @ 14:52:18 // Winter2019/RPGLIKE Player: Lava Result: Destroyed by D-53 Grenadier with Mini Grenade Launcher Performance ------------- Evolutions (0) 0 Regions Visited (2) 400 Robots Destroyed (20) 100 Value Destroyed (444) 444 Prototype IDs (2) 40 Alien Tech Used (0) 0 Bonus (0) 0 TOTAL SCORE: 984 Bonus ------- None Cogmind --------- Core Integrity 0/600 Matter 142/300 Energy 250/250 System Corruption 5% Temperature Cool (0) Movement Treading (160) Location -10/Mines Parts ------- > --- POWER (1) -------- Ion Engine > --- PROPULSION (2) --- Light Treads Light Treads > --- UTILITY (3) ------ Signal Interpreter Hacking Suite Hacking Suite > --- WEAPON (2) ------- Assault Rifle Mini Grenade Launcher > --- INVENTORY (1) ---- Light Assault Rifle Peak State ------------ > --- POWER ------------ Ion Engine > --- PROPULSION ------- Light Treads Light Treads > --- UTILITY ---------- Signal Interpreter Hacking Suite Hacking Suite > --- WEAPON ----------- Assault Rifle Mini Grenade Launcher > --- INVENTORY -------- Light Assault Rifle [Rating: 13] Favorites ----------- Power Ion Engine Engine Ion Engine Propulsion Light Treads Treads Light Treads Utility Signal Interpreter Processor Signal Interpreter Hackware Hacking Suite Protection Power Shielding Weapon Light Assault Rifle Ballistic Gun Light Assault Rifle Launcher Mini Grenade Launcher Build | -11 -10 -10 ------- Run | Yrd Mat Min Slots Evolved 4 | 3 1 . Power . | . . . Propulsion 1 | 1 . . Utility 2 | 1 1 . Weapon 1 | 1 . . Parts Attached 12 | 5 6 1 Power 1 | 1 . . Engine 1 | 1 . . Core . | . . . Reactor . | . . . Propulsion 2 | 2 . . Treads 2 | 2 . . Leg . | . . . Wheel . | . . . Hover . | . . . Flight . | . . . Utility 4 | . 4 . Device . | . . . Storage . | . . . Processor 1 | . 1 . Hackware 2 | . 2 . Protection 1 | . 1 . Artifact . | . . . Weapon 5 | 2 2 1 Energy Gun . | . . . Energy Cannon . | . . . Ballistic Gun 4 | 2 2 . Ballistic Cannon . | . . . Launcher 1 | . . 1 Special Weapon . | . . . Impact Weapon . | . . . Slashing Weapon . | . . . Piercing Weapon . | . . . Special Melee Weapon . | . . . Unidentified Prototypes . | . . . Parts Lost . | . . . Power . | . . . Propulsion . | . . . Utility . | . . . Weapon . | . . . Highest Loss Streak . | . . . To Critical Strikes . | . . . Average Slot Usage (%) 97 | . 97 100 Engine 13 | . 13 12 Treads 27 | . 27 25 Processor 13 | . 13 12 Hackware 8 | . 7 25 Protection 6 | . 6 . Ballistic Gun 26 | . 27 12 Peak Build Rating 13 | 5 12 13 Average Rating 8 | 4 8 12 On Entrance 5 | . 5 12 Naked Turns . | . . . Heaviest Build 9 | 7 9 8 Greatest Support 40 | 40 40 40 Greatest Overweight (x) 2 | 2 . . Average Overweight (x) . | . . . Largest Inventory Capacity 1 | 1 1 1 Average Capacity 1 | 1 1 1 Most Carried 1 | 1 1 1 Average Carried . | . . 1 Final Capacity 1 | 1 1 1 Final Carried 1 | 1 1 1 Class Distribution -------------------- 78% | Mutant 21% | Hacker-Mutant Dominant Class ---------------- Mutant | -10/Materials Hacker-Mutant | -10/Mines Resources | -11 -10 -10 ----------- Run | Yrd Mat Min Matter Collected 607 | 214 393 . Remotely . | . . . Salvage Created 362 | . 362 . Parts 39 | . 36 3 Haulers Intercepted . | . . . Recyclers Shooed 1 | . 1 . Parts Field Recycled . | . . . Retrieved Matter . | . . . Parts Self-Destructed . | . . . Prevented . | . . . Kills | -11 -10 -10 ------- Run | Yrd Mat Min Combat Hostiles Destroyed 14 | . 13 1 Guns 11 | . 11 . AOE 3 | . 2 1 Classes Destroyed 7 | . 6 1 Worker 1 | . 1 . Builder 1 | . 1 . Operator 2 | . 2 . Watcher 2 | . 2 . Swarmer 6 | . 6 . Grunt 7 | . 7 . Demolisher 1 | . . 1 Best Kill Streak 5 | . 5 1 Combat Bots Only 3 | . 3 1 Max Kills in Single Turn 2 | . 2 1 Gunslinging . | . . . Exploded 2 | . 2 1 Melee . | . . . Uniques/NPCs Destroyed . | . . . Combat | -11 -10 -10 -------- Run | Yrd Mat Min Hostile Shots Fired 128 | . 118 10 Missed 39 | . 39 . Damage Taken 1193 | . 837 356 Core 934 | . 648 286 Absorbed by Shields . | . . . Redirected to Core 725 | . 495 230 Redirected to Shielding 23 | . 23 . Core Remaining (%) 100 | 100 . . Volleys Fired 75 | . 69 6 Largest 2 | . 2 2 Hottest 50 | . 40 50 Shots Fired 153 | . 141 12 Gun 147 | . 141 6 Cannon . | . . . Launcher 6 | . . 6 Special . | . . . Kinetic 147 | . 141 6 Thermal . | . . . Explosive 6 | . . 6 Electromagnetic . | . . . Robot Hit Streak 10 | . 10 7 Robot Miss Streak 8 | . 8 1 Penetration Max . | . . . Secondary Targets 2 | . 2 . Max Gunslinging Chain 1 | . 1 . Shots Hit Robots 82 | . 72 10 Core Hits 39 | . 33 6 Critical Kills 1 | . 1 . Critical Parts Destroyed . | . . . Critical Strikes 1 | . 1 . Destroy 1 | . 1 . Melee Attacks . | . . . Impact . | . . . Slashing . | . . . Piercing . | . . . Sneak Attacks . | . . . Combat Hostiles . | . . . Follow-up Attacks . | . . . Damage Inflicted 1234 | . 1047 187 Guns 873 | . 809 64 Cannons . | . . . Explosions 357 | . 234 123 Melee . | . . . Ramming 4 | . 4 . Kinetic 873 | . 809 64 Thermal . | . . . Explosive 357 | . 234 123 Electromagnetic . | . . . Impact . | . . . Slashing . | . . . Piercing . | . . . Highest Corruption 5 | . 5 5 Average Corruption 4 | . 4 5 Corruption Purged . | . . . Corruption Blocked . | . . . Effects 27 | . 27 . Message Errors 6 | . 6 . Matter Fused 12 | . 12 . Heat Flow Errors 1 | . 1 . Energy Discharges 3 | . 3 . Data Loss (minor) 2 | . 2 . Misfires 3 | . 3 . Overload Shots . | . . . Overflow Damage 9 | . . 9 Projectiles . | . . . Explosions 9 | . . 9 Melee . | . . . Knockbacks . | . . . Impact . | . . . Kinetic . | . . . Secondary . | . . . Self-Inflicted Damage 49 | . 49 . Shots 1 | . 1 . Rammed 2 | . 2 . Targets Rammed 2 | . 2 . Kicked . | . . . Crushed . | . . . Highest Temperature 180 | . 180 . Average Temperature 22 | . 22 . Received Heat Transfer 261 | . 261 . Siege Activations . | . . . Robots Corrupted . | . . . Combat Hostiles . | . . . Parts Fried . | . . . Impact Corruptions . | . . . Robots Melted . | . . . Combat Hostiles . | . . . Parts Melted . | . . . Heat Transferred . | . . . Parts Sabotaged . | . . . Parts Stolen . | . . . Parts Stripped . | . . . Power Chain Reactions . | . . . Alert | -11 -10 -10 ------- Run | Yrd Mat Min Peak Influence 277 | . 277 86 Initial 60 | . . 60 Average 115 | . 122 68 Maximum Alert Level 1 | . 1 . Low Security (%) 73 | 100 71 100 Level 1 26 | . 28 . Level 2 . | . . . Level 3 . | . . . Level 4 . | . . . Level 5 . | . . . High Security . | . . . Max Security . | . . . Squads Dispatched 3 | . 3 . Investigation 1 | . 1 . Extermination . | . . . Reinforcement 2 | . 2 . Assault . | . . . Garrison . | . . . Intercept . | . . . Searches Triggered . | . . . Construction Impeded . | . . . Haulers Reinforced . | . . . Active Scanning Responses . | . . . Cargo Convoy Interrupts . | . . . Stealth | -11 -10 -10 --------- Run | Yrd Mat Min Distress Signals . | . . . Communications Jammed . | . . . Distress Signals . | . . . Times Spotted 23 | . 21 2 Peak Tracking Total 4 | . 4 2 Tactical Retreats . | . . . Traps | -11 -10 -10 ------- Run | Yrd Mat Min Traps Triggered 4 | . 4 . Indirectly . | . . . Trap Hack Attempts . | . . . Triggered . | . . . Disarmed 12 | . 12 . Reprogrammed 4 | . 4 . Reused . | . . . Traps Extracted . | . . . Installed . | . . . Triggered . | . . . Machines | -11 -10 -10 ---------- Run | Yrd Mat Min Machines Disabled 1 | . 1 . Max in Single Turn 1 | . 1 . Machines Repaired . | . . . Machines Dismantled . | . . . Machines Sabotaged . | . . . Overloaded Fab Kills . | . . . Hacking | -11 -10 -10 --------- Run | Yrd Mat Min Machines Accessed 6 | . 6 . Terminals 6 | . 6 . Fabricators . | . . . Repair Stations . | . . . Recycling Units . | . . . Scanalyzers . | . . . Garrison Access . | . . . Total Hacks 16 | . 16 . Successful 7 | . 7 . Failed 9 | . 9 . Catastrophic 3 | . 3 . Database Lockouts . | . . . Manual 9 | . 9 . Terminals 16 | . 16 . Fabricators . | . . . Repair Stations . | . . . Recycling Units . | . . . Scanalyzers . | . . . Garrison Access . | . . . Terminal Hacks 7 | . 7 . Prototype ID Bank 1 | . 1 . Branch Access Points 1 | . 1 . Terminal Index 1 | . 1 . Disarm Traps 3 | . 3 . Reprogram Traps 1 | . 1 . Fabricator Hacks . | . . . Repair Station Hacks . | . . . Recycling Unit Hacks . | . . . Scanalyzer . | . . . Garrison Access Hacks . | . . . Unauthorized Hacks . | . . . Terminals . | . . . Fabricators . | . . . Repair Stations . | . . . Recycling Units . | . . . Scanalyzers . | . . . Garrison Access . | . . . Data Cores Recovered . | . . . Used . | . . . Hacking Detections 6 | . 6 . Full Trace Events . | . . . Feedback Events . | . . . Feedback Blocked . | . . . Robot Schematics Acquired . | . . . Robots Built . | . . . Authchips . | . . . Time . | . . . Total Robot Build Rating . | . . . Part Schematics Acquired . | . . . Parts Built . | . . . Authchips . | . . . Time . | . . . Total Part Build Rating . | . . . Parts Repaired . | . . . Time . | . . . Parts Recycled . | . . . Recycled Matter . | . . . Retrieved Matter . | . . . Retrieved Components . | . . . Parts Scanalyzed . | . . . Part Schematics Acquired . | . . . Parts Damaged . | . . . Bothacking | -11 -10 -10 ------------ Run | Yrd Mat Min Used RIF Installer . | . . . Robots Hacked . | . . . Non-combat . | . . . Combat . | . . . Robot Hacks Applied . | . . . Relay Couplers Released . | . . . Fabnet Peak Effective % . | . . . Robots Rewired . | . . . Allies Hacked . | . . . Hacks Repelled . | . . . Allies | -11 -10 -10 -------- Run | Yrd Mat Min Total Allies . | . . . Largest Group . | . . . Highest-Rated Group . | . . . Highest-Rated Ally . | . . . Total Orders . | . . . Ally Attacks . | . . . Total Damage . | . . . Kills . | . . . Allies Corrupted . | . . . Allies Melted . | . . . Intel | -11 -10 -10 ------- Run | Yrd Mat Min Robot Analysis Total . | . . . Derelict Logs Recovered . | . . . Drone Launches . | . . . Drone Recoveries . | . . . Exploration | -11 -10 -10 ------------- Run | Yrd Mat Min Turns Passed 1422 | 55 1315 52 Spaces Moved 731 | 34 679 18 Core 11 | 11 . . Treads 720 | 23 679 18 Legs . | . . . Wheels . | . . . Hover . | . . . Flight . | . . . Fastest Speed 50 | 50 160 160 Average Speed 158 | 136 160 160 Slowest Speed 160 | 160 160 160 Overloaded Moves . | . . . Propulsion Burnouts . | . . . Robots Hopped . | . . . Cave-ins Triggered . | . . . Exploration Rate (%) 36 | 3 95 10 Regions Visited 2 Branch Regions 1 Pre-discovered Areas . | . . . Known Exits Taken 1 | . 1 . Unknown Exits Taken 1 | 1 . . Scrap Searched . | . . . Spaces Dug . | . . . Terrain Destroyed 35 | . 25 10 Melee . | . . . Projectile . | . . . AOE 35 | . 25 10 Terrain Rammed . | . . . Walls Destroyed . | . . . Machines Disabled . | . . . Actions | -11 -10 -10 --------- Run | Yrd Mat Min Total 852 | 40 783 29 Wait 8 | 1 3 4 Move 729 | 33 678 18 Hop . | . . . Pick Up 6 | 1 5 . Fast Attach 7 | 5 2 . Attach 1 | . 1 . Detach . | . . . Swap 4 | . 3 1 Drop 5 | . 5 . Fire 75 | . 69 6 Melee . | . . . Ram . | . . . Kick . | . . . Crush 2 | . 2 . Escape Stasis . | . . . Rewire . | . . . Trap . | . . . Miscellaneous 15 | . 15 . Route ------- -11/Scrapyard -10/Materials (discovered 5 exits: [*Mat x3] / *Min x2) -10/Mines History --------- Turn | Location | Event 1 | -11/Scrapyard | Upgraded with Propulsion slot (x1) 1 | -11/Scrapyard | Upgraded with Utility slot (x1) 1 | -11/Scrapyard | Upgraded with Weapon slot (x1) 8 | -11/Scrapyard | Discovered new exit (range 16) 56 | -11/Scrapyard | Entered Materials 262 | -10/Materials | Discovered new exit (range 5) 267 | -10/Materials | Discovered new exit (range 14) 269 | -10/Materials | Identified exit to Mines 308 | -10/Materials | Build established: Mutant 412 | -10/Materials | Discovered exit to Mines (range 15) 800 | -10/Materials | Core integrity fell below 50% 897 | -10/Materials | Discovered new exit (range 13) 948 | -10/Materials | Reached level 2 1068 | -10/Materials | Discovered new exit (range 16) 1144 | -10/Materials | Upgraded with Utility slot (x1) 1371 | -10/Materials | Entered Mines 1372 | -10/Mines | Assembled infested the area 1377 | -10/Mines | Assisted by a Guerilla fighting off Assembled 1395 | -10/Mines | Met a Derelict bent on vengeance 1416 | -10/Mines | Core integrity fell below 20% 1423 | -10/Mines | Destroyed by D-53 Grenadier with Mini Grenade Launcher Last Messages --------------- 01377_ A derelict emerges from the shadows: "You need to get out of here! I've been tracking a group of Assembled to figure out where they're coming from, and they're closing on this area, come on!" 01393_ 6S-QZW(h) destroyed. 01396_ as-31969 destroyed. 01404_ D-53 Grenadier destroyed. 01408_ The unstable cave ceiling collapses. 01408_ U-05 Engineer builds a Wall. 01409_ U-05 Engineer lays Concrete. 01410_ U-05 Engineer builds a Wall. 01412_ U-05 Engineer lays Concrete. 01413_ The unstable cave ceiling collapses. 01413_ U-05 Engineer builds a Wall. 01414_ The unstable cave ceiling collapses. 01417_ U-05 Engineer lays Concrete. 01418_ Destroyed Welding Torch. 01418_ U-05 Engineer lays Concrete. 01420_ U-05 Engineer builds a Wall. 01421_ The unstable cave ceiling collapses. [Achievement: Back For More] Map ----- +----------------------------------------------------+ | ??????????????????????????????????????? | | ??????????????????????????????????????? | | ??????????????????????????????????????? | | ??????????????????????????????????????? | | ??????????????????????????????????????? | | ??????????????????????????????????????? | | ??????????????????????????????????????? | | ??????????????????????????????????????? | | ??????????????????????????????????????? | | ??????????????????????????????????????? | | ????????????? #???????????????????????? | | ???????????## ##?????????????????????? | | ?????????####u ###???????????????????? | | ????????## ##??????????????????? | | ????????# #??????????????????? | | ????????? ##?????????????????? | | ???????### d ##????????????????? | | ???##### ##???????????????? | | ??## ## ###### ?????????? | | ??# ## # # ?????????? | | ??# # # ?????????? | | ?## #??????????? | | ?# u #????????????? | | ?# ### #?????????????? | | ?# #### < #??????????????? | | ?## #?## @ #?????????????????? | | ??# ## #?????????????????? | | ??# ## #?????????????????? | | ??# #### ##?????????????????? | | ??## ##??## ###??????????????????? | | ???####????########???????????????????? | | ??????????????????????????????????????? | | ??????????????????????????????????????? | | ??????????????????????????????????????? | | ??????????????????????????????????????? | | ??????????????????????????????????????? | | | | | | | | | | | | | | | | | | | | | | | | | | | | | +----------------------------------------------------+ Best States ------------- Heat Dissipation 25 Energy Generation 10 Energy Capacity 250 Matter Stores 300 Matter Capacity 300 Sight Range 16 Robot Scan Range 16 Terrain Scan Density 10 Power Shielding 33 Evasion (%) 50 Recoil Reduction 2 Offensive Hacking 25 Item Schematics ----------------- None Robot Schematics ------------------ None Fabricated ------------ Nothing Alien Tech Used ----------------- None Achievements -------------- Back For More Challenges ------------ None RPGLIKE | -11 -10 -10 --------- Run | Yrd Mat Min Levels Raised 1 | . 1 . XP Earned 5410 | 3000 1810 600 XP Spent 4250 | 2850 1400 . Upgrades 15 | 12 3 . Propulsion Slot 1 | 1 . . Utility Slot 2 | 1 1 . Weapon Slot 1 | 1 . . Inventory Capacity 1 | 1 . . Sensor Range 8 | 8 . . Ranged Accuracy 1 | . 1 . Hack Attack % 1 | . 1 . Protomatter Created 160 | . 111 49 Integrity Restored 333 | . 333 . Core 333 | . 333 . Protomatter Decayed . | . . . Game ------ Seed BattleCompactCasing Manual? 0 Play Time 00:11:10 Cumulative 29.5 hours Start 2025.03.22 @ 14:42:18 End 2025.03.22 @ 14:52:18 Sessions 1 Manual Loads 0 Difficulty Rogue Special Mode Winter2019/RPGLIKE Game No. 50 Rogue 50 Adventurer 0 Explorer 0 Win Type - Total 0 Types 0/0/0/0/0/0/0/0/0 Lore% 13 Gallery% 24 Achievement% 25 Wizard Run 0 Options --------- Layout 0 ASCII 0 Keyboard 0 Movement Mouse Keybinds 0 Fullscreen 1 Font 24/Smallcaps Map View 76x56 Zoom Use 0% Tactical HUD 1 Map Filters NONE Filters NONE Steam 1 RUN: 083b172f-53b8-47b3-8cf0-04f2b6a6f9a9